fUSD/lending_fUSD_20251113
["ID","MTS","AMOUNT","RATE_DAILY","PERIOD"]
[393880267,1763066131575,-169.24567618,0.000168,2]
[393880268,1763066133987,-196.67778582,0.000168,2]
[393880269,1763066137366,-6961.74295144,0.000168,2]
[393880270,1763066137477,-10000.01,0.000168,2]
[393880271,1763066137609,-10000.01,0.000168,2]
[393880272,1763066137716,-10000.01,0.000168,2]
[393880273,1763066137833,-10000.01,0.000168,2]
[393880274,1763066137958,-10000.01,0.000168,2]
[393880275,1763066138077,-10000.01,0.000168,2]
[393880276,1763066138210,-10000.01,0.000168,2]
[393880277,1763066138335,-10000.01,0.000168,2]
[393880278,1763066138578,-151.0,0.000168,2]
[393880279,1763066141661,-402.05463079,0.000168,2]
[393880280,1763066146071,-10000.01,0.000168,2]
[393880281,1763066146192,-151.0,0.000168,2]
[393880282,1763066146225,-10000.01,0.000168,2]
[393880283,1763066146324,-10000.01,0.000168,2]
[393880284,1763066146611,-10000.01,0.000168,2]
[393880285,1763066147247,-10000.01,0.000168,2]
[393880286,1763066147506,-10000.01,0.000168,2]
[393880287,1763066147629,-10000.01,0.000168,2]
[393880288,1763066147741,-10000.01,0.000168,2]
[393880289,1763066147874,-10000.01,0.000168,2]
[393880290,1763066148042,-10000.01,0.000168,2]
[393880291,1763066149577,-234.18154421,0.000168,2]
[393880292,1763066154899,-241.06101562,0.000168,2]
[393880293,1763066158540,-277.89872544,0.000168,2]
[393880294,1763066161281,-424.22290232,0.000168,2]
[393880295,1763066168687,-280.32726495,0.00016799,2]
[393880296,1763066173436,-165.62450238,0.00016799,2]
[393880297,1763066176164,-104.04823267,0.00016799,2]
[393880298,1763066176187,-277.4596726,0.00016799,2]
[393880299,1763066178650,-22.5403274,0.00016799,2]
[393880300,1763066178672,-174.93611104,0.000168,2]
[393880301,1763066179337,-75.06388896,0.000168,2]
[393880302,1763066179380,-9849.88222208,0.000168,2]
[393880303,1763066179462,-10000.01,0.000168,2]
[393880304,1763066179639,-10000.01,0.000168,2]
[393880305,1763066179772,-10000.01,0.000168,2]
[393880306,1763066179890,-10000.01,0.000168,2]
[393880307,1763066180022,-10000.01,0.000168,2]
[393880308,1763066180172,-10000.01,0.000168,2]
[393880309,1763066182419,-2544.69860727,0.000168,2]
[393880310,1763066182629,-4910.61278546,0.000168,2]
[393880311,1763066202495,480.78,8.463e-05,2]
[393880312,1763066202711,480.78,8.909e-05,2]
[393880313,1763066203606,480.78,9.354e-05,2]
[393880314,1763066203826,480.78,9.8e-05,2]
[393880315,1763066204036,480.78,0.00010245,2]
[393880316,1763066204292,480.78,0.00010691,2]
[393880317,1763066204515,480.78,0.00011136,2]
[393880318,1763066204746,480.78,0.00011582,2]
[393880319,1763066205068,480.78,0.00012027,2]
[393880320,1763066205282,480.78,0.00012472,2]
[393880321,1763066205531,480.78,0.00012918,2]
[393880322,1763066205727,480.78,0.00013363,2]
[393880323,1763066205940,480.78,0.00013809,2]
[393880324,1763066206171,480.78,0.00014254,2]
[393880325,1763066206374,480.78,0.000147,2]
[393880326,1763066206596,480.78,0.00015145,2]
[393880327,1763066207181,480.78,0.00015591,2]
[393880328,1763066207225,480.78,0.00016036,2]
[393880329,1763066211378,-290.981863,0.00016482,2]
[393880330,1763066214153,-185.08854538,0.00016482,2]
[393880333,1763066215747,-4.70959162,0.00016482,2]
[393880334,1763066215771,-190.29040838,0.00016927,2]
[393880335,1763066217837,-168.45292461,0.00016927,2]
[393880351,1763066295299,10000.01,0.000168,2]
[393880352,1763066295326,10000.01,0.000168,2]
[393880353,1763066295351,10000.01,0.000168,2]
[393880354,1763066295375,10000.01,0.000168,2]
[393880355,1763066295400,10000.01,0.000168,2]
[393880356,1763066295426,10000.01,0.000168,2]
[393880357,1763066295451,10000.01,0.000168,2]
[393880358,1763066295476,10000.01,0.000168,2]
[393880359,1763066295505,10000.01,0.000168,2]
[393880360,1763066295530,10000.01,0.000168,2]
[393880361,1763066296642,-217.4887708,0.000168,2]
[393880362,1763066298723,-416.04224315,0.000168,2]
[393880363,1763066303176,-155.5003736,0.000168,2]
[393880364,1763066305434,-151.0,0.000168,2]
[393880365,1763066330877,-10000.01,0.000168,2]
[393880366,1763066331003,-10000.01,0.000168,2]
[393880367,1763066331114,-10000.01,0.000168,2]
[393880368,1763066331251,-10000.01,0.000168,2]
[393880369,1763066331383,-10000.01,0.000168,2]
[393880370,1763066331511,-10000.01,0.000168,2]
[393880371,1763066331639,-10000.01,0.000168,2]
[393880372,1763066331742,-10000.01,0.000168,2]
[393880373,1763066331844,-10000.01,0.000168,2]
[393880374,1763066331973,-10000.01,0.000168,2]
[393880375,1763066346121,-647.76810778,0.00016482,2]
[393880376,1763066346172,-300.0,0.00016799,2]
[393880377,1763066346242,-550.0,0.00016799,2]
[393880378,1763066346412,-7004.47378444,0.000168,2]
[393880379,1763066346440,-10000.01,0.000168,2]
[393880380,1763066346494,-10000.01,0.000168,2]
[393880381,1763066346544,-10000.01,0.000168,2]
[393880382,1763066346862,-10000.01,0.000168,2]
[393880383,1763066346913,-10000.01,0.000168,2]
[393880384,1763066347271,-10000.01,0.000168,2]
[393880385,1763066347358,-10000.01,0.000168,2]
[393880386,1763066347375,-10000.01,0.000168,2]
[393880387,1763066348093,276.59540325,7.945e-05,2]
[393880388,1763066348115,294.97945675,7.945e-05,2]
[393880389,1763066349061,-1852.42,0.00016753,2]
[393880390,1763066349092,-653.41,0.0001679,3]
[393880391,1763066349262,-4988.35,0.000168,2]
[393880392,1763066352145,-10000.01,0.000168,2]
[393880393,1763066352285,-10000.01,0.000168,2]
[393880394,1763066352397,-10000.01,0.000168,2]
[393880395,1763066354891,-10000.01,0.000168,2]
[393880396,1763066355045,-10000.01,0.000168,2]
[393880397,1763066355193,-10000.01,0.000168,2]
[393880398,1763066355366,-10000.01,0.000168,2]
[393880399,1763066355501,-10000.01,0.000168,2]
[393880400,1763066355645,-10000.01,0.000168,2]
[393880401,1763066364631,-628.39378853,0.00016799,2]
[393880402,1763066364664,-628.39378853,0.00016799,2]
[393880403,1763066364695,-628.39378853,0.00016799,2]
[393880404,1763066364725,-628.39378853,0.00016799,2]
[393880405,1763066364755,-628.39378853,0.00016799,2]
[393880406,1763066364785,-628.39378853,0.00016799,2]
[393880407,1763066364822,-628.39378853,0.00016799,2]
[393880408,1763066364854,-574.10317205,0.00016799,2]
[393880409,1763066364915,-54.29061648,0.00016799,2]
[393880410,1763066364946,-628.39378853,0.00016799,2]
[393880411,1763066364977,-628.39378853,0.00016799,2]
[393880412,1763066365007,-628.39378853,0.00016799,2]
[393880413,1763066365039,-628.39378853,0.00016799,2]
[393880414,1763066365074,-628.39378853,0.00016799,2]
[393880415,1763066365105,-628.39378853,0.00016799,2]
[393880416,1763066365136,-628.39378853,0.00016799,2]
[393880417,1763066365166,-465.52193909,0.00016799,2]
[393880418,1763066365216,-162.87184944,0.00016799,2]
[393880419,1763066365445,-628.39378853,0.00016799,2]
[393880420,1763066365477,-628.39378853,0.00016799,2]
[393880421,1763066365510,-628.39378853,0.00016799,2]
[393880422,1763066365542,-628.39378853,0.00016799,2]
[393880423,1763066365577,-628.39378853,0.00016799,2]
[393880424,1763066365609,-628.39378853,0.00016799,2]
[393880425,1763066365639,-628.39378853,0.00016799,2]
[393880426,1763066365669,-248.35947317,0.00016799,2]
[393880427,1763066366280,-380.03431536,0.00016799,2]
[393880428,1763066366291,-248.35947317,0.00016799,2]
[393880429,1763066366322,-235.83628921,0.00016799,2]
[393880430,1763066367293,-144.19802615,0.00016799,2]
[393880431,1763066367331,-628.39378853,0.00016799,2]
[393880432,1763066367369,-628.39378853,0.00016799,2]
[393880433,1763066367403,-628.39378853,0.00016799,2]
[393880434,1763066367436,-628.39378853,0.00016799,2]
[393880435,1763066367469,-628.39378853,0.00016799,2]
[393880436,1763066367502,-628.39378853,0.00016799,2]
[393880437,1763066367540,-628.39378853,0.00016799,2]
[393880438,1763066367577,-285.70711975,0.00016799,2]
[393880439,1763066367683,-342.68666878,0.00016799,2]
[393880440,1763066367715,-628.39378853,0.00016799,2]
[393880441,1763066367749,-628.39378853,0.00016799,2]
[393880442,1763066367782,-628.39378853,0.00016799,2]
[393880443,1763066367816,-628.39378853,0.00016799,2]
[393880444,1763066367850,-628.39378853,0.00016799,2]
[393880445,1763066367885,-628.39378853,0.00016799,2]
[393880446,1763066367916,-628.39378853,0.00016799,2]
[393880447,1763066368438,-342.68666878,0.00016799,2]
[393880448,1763066368457,-285.70711975,0.00016799,2]
[393880449,1763066368466,-231.41650327,0.00016799,2]
[393880450,1763066368610,-396.97728526,0.00016799,2]
[393880451,1763066368635,-42.96951902,0.00016799,2]
[393880452,1763066370365,-585.42426951,0.00016799,2]
[393880453,1763066370400,-628.39378853,0.00016799,2]
[393880454,1763066370432,-628.39378853,0.00016799,2]
[393880455,1763066370466,-628.39378853,0.00016799,2]
[393880456,1763066370499,-628.39378853,0.00016799,2]
[393880457,1763066370533,-628.39378853,0.00016799,2]
[393880458,1763066370568,-628.39378853,0.00016799,2]
[393880459,1763066370599,-628.39378853,0.00016799,2]
[393880460,1763066370710,-628.39378853,0.00016799,2]
[393880461,1763066370743,-628.39378853,0.00016799,2]
[393880462,1763066370904,-31.64842156,0.000168,2]
[393880463,1763066370923,-7486.43484588,0.000168,2]
[393880464,1763066373512,-1067.08379184,0.00016799,2]
[393880465,1763066373544,-1067.08379184,0.00016799,2]
[393880466,1763066373576,-1067.08379184,0.00016799,2]
[393880467,1763066373607,-1067.08379184,0.00016799,2]
[393880468,1763066373638,-396.25587344,0.00016799,2]
[393880469,1763066373724,-670.8279184,0.00016799,2]
[393880470,1763066373772,-1067.08379184,0.00016799,2]
[393880471,1763066373807,-1067.08379184,0.00016799,2]
[393880472,1763066373841,-1067.08379184,0.00016799,2]
[393880473,1763066373877,-1067.08379184,0.00016799,2]
[393880474,1763066373912,-396.25587344,0.00016799,2]
[393880475,1763066374049,-670.8279184,0.00016799,2]
[393880476,1763066374085,-1067.08379184,0.00016799,2]
[393880477,1763066374117,-1067.08379184,0.00016799,2]
[393880478,1763066374149,-1067.08379184,0.00016799,2]
[393880479,1763066374180,-1067.08379184,0.00016799,2]
[393880480,1763066374335,-670.8279184,0.00016799,2]
[393880481,1763066374355,-121.68382848,0.00016799,2]
[393880483,1763066376430,-274.57204496,0.00016799,2]
[393880484,1763066376464,-1067.08379184,0.00016799,2]
[393880485,1763066376496,-1067.08379184,0.00016799,2]
[393880486,1763066376529,-1067.08379184,0.00016799,2]
[393880487,1763066376563,-1067.08379184,0.00016799,2]
[393880488,1763066376681,-1067.08379184,0.00016799,2]
[393880489,1763066376713,-1067.08379184,0.00016799,2]
[393880490,1763066376744,-1067.08379184,0.00016799,2]
[393880491,1763066376777,-1067.08379184,0.00016799,2]
[393880492,1763066376916,-914.19557536,0.000168,2]
[393880493,1763066376934,-1463.33966528,0.000168,2]
[393880494,1763066376993,-10000.01,0.000168,2]
[393880495,1763066377066,-10000.01,0.000168,2]
[393880496,1763066379566,-2828.87368007,0.000168,2]
[393880497,1763066379592,-4342.26263986,0.000168,2]
[393880499,1763066404449,762.831578,0.00016842,2]
[393880500,1763066406878,500.0,0.00016799,2]
[393880501,1763066407005,500.0,0.00016799,2]
[393880502,1763066407157,500.0,0.00016799,2]
[393880503,1763066407208,500.0,0.00016799,2]
[393880504,1763066407262,500.0,0.00016799,2]
[393880505,1763066407313,198.80032187,0.00016799,2]
[393880506,1763066407690,2678.304297,7.945e-05,2]
[393880507,1763066408227,-122.03666701,0.00016927,2]
[393880519,1763066429280,369.13864444,0.00016799,2]
[393880520,1763066430778,1000.0,0.00016781,2]
[393880521,1763066433265,500.0,0.00016827,2]
[393880523,1763066512866,1990.93515869,0.00016636,2]
[393880524,1763066512889,4171.89484131,0.00016636,2]
[393880525,1763066515316,193.25,0.00016712,2]
[393880526,1763066528356,153.20968267,0.00016716,2]
[393880527,1763066542609,2840.13,0.00016522,2]
[393880533,1763066552654,2641.52547602,0.00016499,2]
[393880534,1763066552677,10000.01,0.00016499,2]
[393880535,1763066552701,10000.01,0.00016499,2]
[393880536,1763066552725,10000.01,0.00016499,2]
[393880537,1763066552747,10000.01,0.00016499,2]
[393880538,1763066552769,10000.01,0.00016499,2]
[393880539,1763066552792,10000.01,0.00016499,2]
[393880540,1763066552813,10000.01,0.00016499,2]
[393880541,1763066552834,10000.01,0.00016499,2]
[393880542,1763066552856,813.75452398,0.00016499,2]
[393880544,1763066603201,500.0,0.00016899,2]
[393880546,1763066628512,277.40507899,0.00016899,2]
[393880547,1763066651869,295.87,0.00016487,2]
[393880548,1763066655853,171.0,0.000164,2]
[393880549,1763066656030,9255.73492101,0.00016596,2]
[393880550,1763066656053,7554.91507899,0.00016596,2]
[393880551,1763066657149,239.0,0.000164,2]
[393880552,1763066658106,274.07414256,0.000164,2]
[393880553,1763066754326,500.0,0.00016899,2]
[393880554,1763066770650,154.53069937,0.00016815,2]
[393880555,1763066794897,500.0,0.00016401,2]
[393880556,1763066802277,156.27506629,0.00016892,2]
[393880557,1763066809809,621.21501279,0.000164,3]
[393880558,1763066809834,377.78498721,0.000164,3]
[393880559,1763066811137,-277.40507897,0.00016986,2]
[393880560,1763066811161,-17.51020244,0.00016992,2]
[393880847,1763066883545,378068.38354,0.0003,120]
[393880848,1763066894568,1009.9869982,0.00016801,2]
[393880849,1763066925043,178.03,0.00013216,2]
[393880852,1763066973821,277.40507897,0.00016897,2]
[393880853,1763066984994,8156.80293562,0.00016801,2]
[393880854,1763066985017,10000.01,0.00016801,2]
[393880855,1763066985040,10000.01,0.00016801,2]
[393880856,1763066985063,10000.01,0.00016801,2]
[393880857,1763066985087,10000.01,0.00016801,2]
[393880858,1763066985109,10000.01,0.00016801,2]
[393880859,1763066985132,9966.70370668,0.00016801,2]
[393880860,1763067017976,1243.0,0.0003,120]
[393880861,1763067018489,1243.0,0.0003,120]
[393880862,1763067018747,152.0,0.0003,120]
[393880863,1763067019004,1243.0,0.0003,120]
[393880864,1763067019274,152.0,0.0003,120]
[393880865,1763067019532,827.0,0.0003,120]
[393880866,1763067019584,1243.0,0.0003,120]
[393880867,1763067020089,827.0,0.0003,120]
[393880868,1763067020120,1243.0,0.0003,120]
[393880869,1763067020607,827.0,0.0003,120]
[393880870,1763067020644,1243.0,0.0003,120]
[393880871,1763067021148,1243.0,0.0003,120]
[393880872,1763067021562,906.06342249,0.0003,120]
[393880873,1763067021654,1243.0,0.0003,120]
[393880874,1763067022081,827.0,0.0003,120]
[393880875,1763067022161,1243.0,0.0003,120]
[393880876,1763067022678,1243.0,0.0003,120]
[393880877,1763067023207,1243.0,0.0003,120]
[393880878,1763067023709,1243.0,0.0003,120]
[393880879,1763067024241,1243.0,0.0003,120]
[393880880,1763067024755,1243.0,0.0003,120]
[393880881,1763067025403,1243.0,0.0003,120]
[393880882,1763067025777,1243.0,0.0003,120]
[393880883,1763067026290,523.24567319,0.0003,120]
[393880884,1763067030036,306.72261386,0.0003,120]
[393880895,1763067031414,-300.0,0.00016993,2]
[393880896,1763067031423,-300.0,0.00016994,2]
[393880897,1763067031433,-250.0,0.00016995,2]
[393880898,1763067031445,-300.0,0.00016996,2]
[393880899,1763067031454,-1200.0,0.00016997,2]
[393880900,1763067031464,-300.0,0.00016997,2]
[393880901,1763067031473,-1200.0,0.00016997,2]
[393880902,1763067031483,-300.0,0.00016997,2]
[393880903,1763067031492,-300.0,0.00016997,2]
[393880904,1763067031501,-550.0,0.00016998,2]
[393880905,1763067031510,-319.97838066,0.00016999,2]
[393880906,1763067031520,-500.0,0.00016999,2]
[393880907,1763067031532,-500.0,0.00016999,2]
[393880908,1763067031541,-500.0,0.00016999,2]
[393880909,1763067031550,-500.0,0.00016999,2]
[393880910,1763067031559,-500.0,0.00016999,2]
[393880911,1763067031568,-232.63117814,0.00016999,2]
[393880912,1763067031578,-500.0,0.00016999,2]
[393880913,1763067031588,-500.0,0.00016999,2]
[393880914,1763067031597,-369.75645158,0.00016999,2]
[393880915,1763067031607,-500.0,0.00016999,2]
[393880916,1763067031616,-515.42408665,0.00016999,2]
[393880917,1763067031626,-351.6519349,0.00017073,2]
[393880918,1763067031635,-224.9722588,0.000171,2]
[393880919,1763067031644,-280.121,0.000171,2]
[393880920,1763067031654,-26338.53635542,0.00017157,2]
[393880921,1763067031663,-500.0,0.00017173,2]
[393880922,1763067031672,-3786.53,0.00017173,2]
[393880923,1763067031681,-1453.64,0.00017173,2]
[393880924,1763067031690,-150.99,0.00017173,2]
[393880925,1763067031699,-1522.85,0.00017173,2]
[393880926,1763067031709,-299.99,0.00017173,4]
[393880927,1763067031719,-4108.02,0.00017173,2]
[393880928,1763067031728,-9999.99,0.00017173,2]
[393880929,1763067031737,-3815.96,0.00017173,2]
[393880930,1763067031746,-150.99,0.00017173,2]
[393880931,1763067031759,-1535.23,0.00017173,2]
[393880932,1763067031768,-999.99,0.00017173,2]
[393880933,1763067031777,-499.99,0.00017173,2]
[393880934,1763067031787,-1660.32,0.00017173,2]
[393880935,1763067031797,-500.0,0.00017173,2]
[393880936,1763067031806,-500.0,0.00017173,2]
[393880937,1763067031815,-500.0,0.00017173,2]
[393880938,1763067031825,-500.0,0.00017173,2]
[393880939,1763067031834,-500.0,0.00017173,2]
[393880940,1763067031843,-500.0,0.00017173,2]
[393880941,1763067031854,-500.0,0.00017173,2]
[393880942,1763067031864,-500.0,0.00017173,2]
[393880943,1763067031873,-500.0,0.00017173,2]
[393880944,1763067031882,-500.0,0.00017173,2]
[393880945,1763067031891,-502.69404323,0.00017173,2]
[393880946,1763067031900,-500.0,0.00017173,2]
[393880947,1763067031910,-500.0,0.00017173,2]
[393880948,1763067031919,-164.70747778,0.00017173,2]
[393880949,1763067031928,-473.60389037,0.00017173,2]
[393880950,1763067031937,-500.0,0.00017173,2]
[393880951,1763067031946,-500.0,0.00017173,2]
[393880952,1763067031955,-349.30178506,0.00017173,2]
[393880953,1763067031964,-626.36620621,0.00017173,2]
[393880954,1763067031974,-500.0,0.00017173,2]
[393880955,1763067031983,-500.0,0.00017173,2]
[393880956,1763067031992,-500.0,0.00017173,2]
[393880957,1763067032002,-500.0,0.00017173,2]
[393880958,1763067032011,-500.0,0.00017173,2]
[393880959,1763067032020,-500.0,0.00017173,2]
[393880960,1763067032030,-151.0,0.0001719,2]
[393880961,1763067032040,-151.0,0.0001719,2]
[393880962,1763067032049,-151.0,0.0001719,2]
[393880963,1763067032058,-151.0,0.0001719,2]
[393880964,1763067032067,-151.0,0.0001719,2]
[393880965,1763067032076,-151.0,0.0001719,2]
[393880967,1763067032085,-151.0,0.0001719,2]
[393880968,1763067032094,-151.0,0.0001719,2]
[393880969,1763067032103,-151.0,0.0001719,2]
[393880970,1763067032114,-151.0,0.0001719,2]
[393880971,1763067032123,-151.0,0.0001719,2]
[393880972,1763067032132,-151.0,0.0001719,2]
[393880973,1763067032141,-151.0,0.0001719,2]
[393880974,1763067032150,-151.0,0.0001719,2]
[393880975,1763067032159,-151.0,0.0001719,2]
[393880976,1763067032168,-151.0,0.0001719,2]
[393880977,1763067032177,-151.0,0.0001719,2]
[393880978,1763067032186,-151.0,0.0001719,2]
[393880979,1763067032195,-151.0,0.0001719,2]
[393880980,1763067032204,-151.0,0.0001719,2]
[393880981,1763067032213,-151.0,0.0001719,2]
[393880982,1763067032222,-151.0,0.0001719,2]
[393880983,1763067032231,-151.0,0.0001719,2]
[393880984,1763067032240,-151.0,0.0001719,2]
[393880985,1763067032249,-151.0,0.0001719,2]
[393880986,1763067032259,-151.0,0.0001719,2]
[393880987,1763067032268,-151.0,0.0001719,2]
[393880988,1763067032278,-151.0,0.0001719,2]
[393880989,1763067032287,-151.0,0.0001719,2]
[393880990,1763067032296,-151.0,0.0001719,2]
[393880991,1763067032305,-151.0,0.0001719,2]
[393880992,1763067032314,-151.0,0.0001719,2]
[393880993,1763067032323,-151.0,0.0001719,2]
[393880994,1763067032332,-151.0,0.0001719,2]
[393880995,1763067032342,-151.0,0.0001719,2]
[393880996,1763067032351,-151.0,0.0001719,2]
[393880997,1763067032362,-151.0,0.0001719,2]
[393880998,1763067032371,-151.0,0.0001719,2]
[393880999,1763067032380,-151.0,0.0001719,2]
[393881000,1763067032389,-151.0,0.0001719,2]
[393881001,1763067032516,-33167.2589,0.0001729,2]
[393881002,1763067032526,-1964.0,0.000173,2]
[393881003,1763067032536,-1000.0,0.000173,6]
[393881004,1763067032545,-351.65193489,0.00017308,2]
[393881005,1763067032554,-574.42,0.00017334,2]
[393881006,1763067032564,-385.8,0.00017334,2]
[393881007,1763067032573,-168.0,0.00017355,2]
[393881008,1763067032582,-5396.0,0.0001739,2]
[393881009,1763067032593,-2000.0,0.000174,6]
[393881010,1763067032603,-295.87,0.00017403,2]
[393881011,1763067032613,-377.86,0.00017446,2]
[393881012,1763067032623,-151.0,0.00017458,2]
[393881013,1763067032633,-151.0,0.00017459,2]
[393881014,1763067032642,-151.0,0.00017461,2]
[393881015,1763067032651,-151.0,0.00017464,2]
[393881016,1763067032660,-385.8,0.00017471,2]
[393881017,1763067032669,-2755.67980084,0.000175,6]
[393881018,1763067032682,-244.32019916,0.000175,6]
[393881019,1763067032691,-351.65193489,0.00017542,2]
[393881020,1763067032700,-406.48305648,0.00017542,2]
[393881021,1763067032711,-1029.07354144,0.00017542,2]
[393881022,1763067032744,166.0,0.0003,120]
[393881023,1763067032768,-3960.44340208,0.00017542,2]
[393881024,1763067032778,-239.78,0.00017589,3]
[393881025,1763067032787,-4277.27250067,0.00017598,2]
[393881026,1763067032830,-394.812,0.00017598,2]
[393881027,1763067032839,-1304.59299656,0.00017598,2]
[393881028,1763067032867,-8202.83948136,0.00017598,2]
[393881029,1763067032875,-3774.59938158,0.00017599,2]
[393881030,1763067035618,166.0,0.0003,120]
[393881031,1763067036135,166.0,0.0003,120]
[393881032,1763067036667,166.0,0.0003,120]
[393881039,1763067037357,-151.0,0.00017467,2]
[393881040,1763067037368,-29530.40271842,0.00017599,2]
[393881041,1763067037376,-1000.0,0.00017599,2]
[393881042,1763067037385,-2500.0,0.00017599,2]
[393881043,1763067037394,-792.53185879,0.00017599,2]
[393881044,1763067037407,-1164.69170018,0.00017599,2]
[393881045,1763067037416,-4000.0,0.000176,6]
[393881046,1763067037425,-12683.1549029,0.00017604,2]
[393881047,1763067037435,-385.82,0.00017608,2]
[393881048,1763067037448,-168.0,0.00017613,2]
[393881049,1763067037457,-168.0,0.00017615,2]
[393881050,1763067037468,-14179.51697859,0.00017632,2]
[393881051,1763067037476,-12683.15490286,0.00017637,2]
[393881052,1763067037488,-1164.69170011,0.00017642,2]
[393881053,1763067037497,-168.0,0.00017645,2]
[393881054,1763067037506,-14179.51697859,0.00017665,2]
[393881055,1763067037516,-500.0,0.00017669,2]
[393881056,1763067037528,-12683.15490286,0.0001767,2]
[393881057,1763067037538,-500.0,0.00017673,2]
[393881058,1763067037547,-502.14268274,0.00017673,2]
[393881059,1763067037557,-502.7946782,0.00017673,2]
[393881060,1763067037566,-500.0,0.00017673,2]
[393881061,1763067037576,-500.0,0.00017673,2]
[393881062,1763067037585,-500.0,0.00017673,2]
[393881063,1763067037595,-352.74427323,0.00017673,2]
[393881064,1763067037608,-500.0,0.00017673,2]
[393881065,1763067037619,-500.0,0.00017673,2]
[393881066,1763067037628,-500.0,0.00017673,2]
[393881067,1763067037638,-2999.404,0.00017679,2]
[393881068,1763067037647,-1164.69170011,0.00017685,2]
[393881069,1763067037657,-163.58,0.00017689,2]
[393881070,1763067037667,-500.0,0.00017698,2]
[393881071,1763067037677,-500.0,0.00017698,2]
[393881072,1763067037686,-592.55259314,0.00017698,2]
[393881073,1763067037696,-439.28190586,0.00017698,2]
[393881074,1763067037706,-500.0,0.00017698,2]
[393881075,1763067037715,-624.49052354,0.00017698,2]
[393881077,1763067037869,-500.0,0.00017698,2]
[393881078,1763067037879,-500.0,0.00017698,2]
[393881079,1763067037888,-500.0,0.00017698,2]
[393881080,1763067037898,-500.0,0.00017698,2]
[393881081,1763067037907,-170.14889518,0.00017698,2]
[393881082,1763067037916,-264.86036266,0.00017698,2]
[393881083,1763067037926,-484.13700888,0.00017698,2]
[393881084,1763067037935,-541.09574014,0.00017698,2]
[393881085,1763067037946,-500.0,0.00017698,2]
[393881086,1763067037955,-443.73507614,0.00017698,2]
[393881087,1763067037966,-500.0,0.00017698,2]
[393881088,1763067037975,-500.0,0.00017698,2]
[393881089,1763067037984,-500.0,0.00017698,2]
[393881090,1763067037994,-500.0,0.00017698,2]
[393881091,1763067038003,-500.0,0.00017698,2]
[393881092,1763067038012,-500.0,0.00017698,2]
[393881093,1763067038021,-567.08701969,0.00017698,2]
[393881094,1763067038031,-500.0,0.00017698,2]
[393881095,1763067038041,-500.0,0.00017698,2]
[393881096,1763067038050,-500.0,0.00017698,2]
[393881097,1763067038060,-561.46292857,0.00017698,2]
[393881098,1763067038070,-500.0,0.00017698,2]
[393881099,1763067038079,-346.47479216,0.00017698,2]
[393881100,1763067038089,-550.289723,0.00017698,2]
[393881101,1763067038098,-420000.0,0.00017699,2]
[393881102,1763067038108,-14179.51697859,0.00017699,2]
[393881103,1763067038120,-5000.0,0.000177,6]
[393881104,1763067038130,-1000.0,0.000177,2]
[393881105,1763067038140,-1397.92334928,0.000177,2]
[393881106,1763067038149,-12683.15490286,0.00017703,2]
[393881107,1763067038159,-168.0,0.00017704,2]
[393881108,1763067038169,-366.62136617,0.00017712,2]
[393881109,1763067038179,-171.31783739,0.00017721,2]
[393881110,1763067038188,-501.78961038,0.00017721,2]